[Event "Championnat d'Europe Rapide"]
[Date "2024.12.08"]
[White "Smeets, Jan"]
[Black "Stanojoski, Zvonko"]
[WhiteElo "2552"]
[BlackElo "2401"]
[Round "9.29"]
[Result "1-0"]
[TimeControl "900+10"]

1. e4 {[%clk 00:15:19]} c5 {[%emt 00:00:07] [%clk 00:15:13]} 2. Nf3 {[%emt
00:00:03] [%clk 00:15:25]} Nc6 {[%emt 00:00:03] [%clk 00:15:21]} 3. Bb5 {[%emt
00:00:03] [%clk 00:15:32]} Nf6 {[%emt 00:00:08] [%clk 00:15:22]} 4. Nc3 {[%emt
00:01:45] [%clk 00:13:57]} g6 {[%emt 00:00:05] [%clk 00:15:27]} 5. Bxc6 {[%emt
00:00:15] [%clk 00:13:52]} dxc6 {[%emt 00:00:02] [%clk 00:15:35]} 6. d3 {[%emt
00:00:02] [%clk 00:14:01]} Bg7 {[%emt 00:00:12] [%clk 00:15:32]} 7. Be3 {[%emt
00:00:07] [%clk 00:14:03]} b6 {[%emt 00:00:02] [%clk 00:15:41]} 8. h3 {[%emt
00:00:09] [%clk 00:14:04]} Nd7 {[%emt 00:00:13] [%clk 00:15:38]} 9. Qd2 {[%emt
00:00:14] [%clk 00:14:00]} h6 {[%emt 00:00:06] [%clk 00:15:42]} 10. O-O {[%emt
00:00:11] [%clk 00:13:59]} e5 {[%emt 00:00:22] [%clk 00:15:30]} 11. Nh2 {[%emt
00:00:16] [%clk 00:13:53]} Nf8 {[%emt 00:00:02] [%clk 00:15:38]} 12. f4 {[%emt
00:00:04] [%clk 00:14:00]} exf4 {[%emt 00:00:02] [%clk 00:15:46]} 13. Bxf4
{[%emt 00:00:20] [%clk 00:13:50]} Ne6 {[%emt 00:00:03] [%clk 00:15:52]} 14. Bg3
{[%emt 00:00:02] [%clk 00:13:58]} Nd4 {[%emt 00:00:17] [%clk 00:15:45]} 15. Rae1
{[%emt 00:03:29] [%clk 00:10:40]} Be6 {[%emt 00:00:17] [%clk 00:15:37]} 16. Nd1
{[%emt 00:01:05] [%clk 00:09:45]} Qd7 {[%emt 00:04:48] [%clk 00:10:59]} 17. Ne3
{[%emt 00:00:08] [%clk 00:09:47]} O-O-O {[%emt 00:00:49] [%clk 00:10:21]} 18.
Nhg4 {[%emt 00:01:18] [%clk 00:08:39]} c4 {[%emt 00:00:10] [%clk 00:10:21]} 19.
c3 {[%emt 00:00:57] [%clk 00:07:53]} cxd3 {[%emt 00:00:05] [%clk 00:10:25]} 20.
cxd4 {[%emt 00:00:05] [%clk 00:07:58]} Qxd4 {[%emt 00:00:02] [%clk 00:10:33]}
21. e5 {[%emt 00:02:01] [%clk 00:06:07]} h5 {[%emt 00:00:58] [%clk 00:09:45]}
22. Rf4 {[%emt 00:01:33] [%clk 00:04:44]} Qc5 {[%emt 00:01:05] [%clk 00:08:50]}
23. Rc1 {[%emt 00:00:21] [%clk 00:04:33]} Qa5 {[%emt 00:00:01] [%clk 00:08:59]}
24. Rxc6+ {[%emt 00:02:50] [%clk 00:01:53]} Kb7 {[%emt 00:00:01] [%clk
00:09:08]} 25. Qxa5 {[%emt 00:00:04] [%clk 00:01:59]} bxa5 {[%emt 00:00:02]
[%clk 00:09:15]} 26. Rxe6 {[%emt 00:00:02] [%clk 00:02:07]} fxe6 {[%emt
00:00:30] [%clk 00:08:55]} 27. Rf7+ {[%clk 00:02:16]} Ka8 {[%emt 00:00:25] [%clk
00:08:39]} 28. Rxg7 {[%emt 00:00:50] [%clk 00:01:36]} hxg4 {[%emt 00:00:01]
[%clk 00:08:48]} 29. hxg4 {[%emt 00:00:56] [%clk 00:00:51]} d2 {[%emt 00:00:50]
[%clk 00:08:08]} 30. Nd1 {[%emt 00:00:02] [%clk 00:00:59]} Rd5 {[%clk 00:08:17]}
31. Rxg6 {[%emt 00:00:24] [%clk 00:00:44]} Rc8 {[%emt 00:00:35] [%clk 00:07:51]}
32. Kf2 {[%emt 00:00:02] [%clk 00:00:53]} Rd3 {[%clk 00:08:00]} 33. Bf4 {[%emt
00:00:29] [%clk 00:00:35]} Rd4 {[%emt 00:00:02] [%clk 00:08:09]} 34. Ke3 {[%emt
00:00:24] [%clk 00:00:20]} Ra4 {[%emt 00:01:37] [%clk 00:06:42]} 35. g3 {[%emt
00:00:04] [%clk 00:00:26]} Rxa2 {[%emt 00:00:02] [%clk 00:06:49]} 36. Kxd2
{[%emt 00:00:12] [%clk 00:00:24]} a4 {[%emt 00:00:02] [%clk 00:06:58]} 37. Ke3
{[%emt 00:00:15] [%clk 00:00:18]} Ra1 {[%emt 00:00:05] [%clk 00:07:03]} 38. Ke2
{[%emt 00:00:09] [%clk 00:00:19]} Rb1 {[%emt 00:00:17] [%clk 00:06:56]} 39. Rxe6
{[%emt 00:00:07] [%clk 00:00:22]} Rc2+ {[%emt 00:00:07] [%clk 00:06:58]} 40. Bd2
{[%emt 00:00:05] [%clk 00:00:28]} Rc4 {[%emt 00:00:06] [%clk 00:07:02]} 41. g5
{[%emt 00:00:07] [%clk 00:00:32]} Re4+ {[%emt 00:00:10] [%clk 00:07:02]} 42. Be3
{[%emt 00:00:05] [%clk 00:00:37]} Rxd1 {[%emt 00:00:21] [%clk 00:06:50]} 43.
Kxd1 {[%emt 00:00:02] [%clk 00:00:45]} Rxe3 {[%clk 00:06:59]} 44. g6 {[%emt
00:00:04] [%clk 00:00:52]} Rxg3 {[%emt 00:00:02] [%clk 00:07:07]} 45. Ke2 {[%emt
00:00:19] [%clk 00:00:43]} Kb7 {[%clk 00:07:17]} 46. Kf2 {[%emt 00:00:01] [%clk
00:00:52]} Rg5 {[%clk 00:07:25]} 47. Kf3 {[%emt 00:00:01] [%clk 00:01:01]} Kc7
{[%emt 00:00:07] [%clk 00:07:28]} 48. Kf4 {[%emt 00:00:01] [%clk 00:01:10]} Rg2
{[%clk 00:07:37]} 49. Ra6 {[%emt 00:01:03] [%clk 00:00:18]} Kb7 {[%emt 00:00:01]
[%clk 00:07:46]} 50. Rxa4 {[%emt 00:00:02] [%clk 00:00:26]} Rxg6 {[%emt
00:00:02] [%clk 00:07:55]} 51. Rd4 {[%emt 00:00:09] [%clk 00:00:27]} Rg2 {[%emt
00:00:03] [%clk 00:08:01]} 52. b4 {[%emt 00:00:02] [%clk 00:00:36]} 1-0

[Site "Europe Echecs"]

[Event "Championnat d'Europe Rapide"]
[Date "2024.12.08"]
[White "Popovic, Milos T"]
[Black "Zajic, Milan"]
[WhiteElo "2334"]
[BlackElo "2392"]
[Round "9.30"]
[Result "0-1"]
[TimeControl "900+10"]

1. d4 {[%emt 00:01:15] [%clk 00:15:19]} Nf6 {[%emt 00:00:02] [%clk 00:15:19]} 2.
Bg5 {[%emt 00:00:08] [%clk 00:15:20]} d5 {[%emt 00:00:04] [%clk 00:15:25]} 3.
Bxf6 {[%emt 00:00:06] [%clk 00:15:24]} exf6 {[%emt 00:00:18] [%clk 00:15:17]} 4.
e3 {[%emt 00:00:06] [%clk 00:15:29]} Bd6 {[%emt 00:00:05] [%clk 00:15:21]} 5. c4
{[%emt 00:00:03] [%clk 00:15:37]} dxc4 {[%emt 00:00:02] [%clk 00:15:29]} 6. Bxc4
{[%emt 00:00:02] [%clk 00:15:45]} f5 {[%emt 00:00:20] [%clk 00:15:20]} 7. Nc3
{[%emt 00:00:03] [%clk 00:15:52]} c6 {[%emt 00:00:03] [%clk 00:15:27]} 8. Nf3
{[%emt 00:00:03] [%clk 00:15:59]} Nd7 {[%emt 00:00:18] [%clk 00:15:20]} 9. Bd3
{[%emt 00:00:41] [%clk 00:15:28]} Nf6 {[%emt 00:00:04] [%clk 00:15:26]} 10. Qc2
{[%emt 00:00:02] [%clk 00:15:37]} g6 {[%emt 00:00:08] [%clk 00:15:27]} 11. h3
{[%emt 00:00:02] [%clk 00:15:45]} Be6 {[%emt 00:00:17] [%clk 00:15:20]} 12.
O-O-O {[%emt 00:00:50] [%clk 00:15:05]} Qa5 {[%emt 00:00:24] [%clk 00:15:07]}
13. Kb1 {[%emt 00:00:01] [%clk 00:15:14]} O-O-O {[%emt 00:00:42] [%clk
00:14:34]} 14. Ng5 {[%emt 00:00:08] [%clk 00:15:17]} Kb8 {[%emt 00:00:12] [%clk
00:14:33]} 15. Nxe6 {[%emt 00:00:03] [%clk 00:15:23]} fxe6 {[%emt 00:00:02]
[%clk 00:14:41]} 16. Be2 {[%emt 00:01:44] [%clk 00:13:50]} Bb4 {[%emt 00:00:24]
[%clk 00:14:27]} 17. Bf3 {[%emt 00:00:05] [%clk 00:13:55]} e5 {[%emt 00:00:43]
[%clk 00:13:54]} 18. dxe5 {[%emt 00:00:15] [%clk 00:13:49]} Qxe5 {[%emt
00:00:02] [%clk 00:14:02]} 19. Rxd8+ {[%clk 00:13:53]} Rxd8 {[%emt 00:00:08]
[%clk 00:14:10]} 20. Rd1 {[%clk 00:14:03]} Rxd1+ {[%emt 00:00:12] [%clk
00:14:07]} 21. Qxd1 {[%emt 00:00:02] [%clk 00:14:11]} Kc7 {[%emt 00:00:18] [%clk
00:13:59]} 22. Qd4 {[%emt 00:01:15] [%clk 00:13:06]} Qxd4 {[%emt 00:00:47] [%clk
00:13:22]} 23. exd4 {[%emt 00:00:02] [%clk 00:13:14]} Bxc3 {[%emt 00:01:19]
[%clk 00:12:12]} 24. bxc3 {[%emt 00:00:01] [%clk 00:13:23]} c5 {[%emt 00:00:47]
[%clk 00:11:35]} 25. dxc5 {[%emt 00:00:18] [%clk 00:13:16]} Nd7 {[%emt 00:00:02]
[%clk 00:11:42]} 26. Bd5 {[%emt 00:00:08] [%clk 00:13:18]} Nf6 {[%emt 00:00:30]
[%clk 00:11:22]} 27. Bf3 {[%emt 00:00:03] [%clk 00:13:25]} Nd7 {[%emt 00:05:07]
[%clk 00:06:26]} 28. Bd5 {[%emt 00:00:02] [%clk 00:13:34]} Nf6 {[%emt 00:00:06]
[%clk 00:06:29]} 29. Bf3 {[%emt 00:00:02] [%clk 00:13:42]} Ne4 {[%emt 00:04:57]
[%clk 00:01:43]} 30. Bxe4 {[%emt 00:10:19] [%clk 00:03:32]} fxe4 {[%emt
00:00:01] [%clk 00:01:51]} 31. Kc2 {[%clk 00:03:42]} Kc6 {[%emt 00:00:01] [%clk
00:02:00]} 32. Kd2 {[%clk 00:03:51]} Kxc5 {[%emt 00:00:02] [%clk 00:02:08]} 33.
Ke3 {[%clk 00:04:00]} Kd5 {[%emt 00:00:02] [%clk 00:02:16]} 34. Kf4 {[%clk
00:04:10]} b5 {[%emt 00:01:36] [%clk 00:00:50]} 35. h4 {[%emt 00:00:02] [%clk
00:04:18]} a5 {[%emt 00:00:17] [%clk 00:00:44]} 36. g4 {[%emt 00:00:09] [%clk
00:04:19]} a4 {[%emt 00:00:14] [%clk 00:00:40]} 37. Ke3 {[%emt 00:02:48] [%clk
00:01:40]} Kc4 {[%emt 00:00:14] [%clk 00:00:36]} 38. Kd2 {[%emt 00:00:19] [%clk
00:01:31]} h5 {[%emt 00:00:32] [%clk 00:00:14]} 39. gxh5 {[%emt 00:00:20] [%clk
00:01:21]} gxh5 {[%emt 00:00:01] [%clk 00:00:22]} 40. Kc2 {[%emt 00:00:01] [%clk
00:01:30]} b4 {[%emt 00:00:10] [%clk 00:00:22]} 41. cxb4 {[%emt 00:00:02] [%clk
00:01:38]} Kxb4 {[%emt 00:00:01] [%clk 00:00:31]} 42. Kb2 {[%emt 00:00:03] [%clk
00:01:46]} Kc4 {[%emt 00:00:20] [%clk 00:00:21]} 43. Kc2 {[%clk 00:01:55]} a3
{[%emt 00:00:15] [%clk 00:00:16]} 44. Kd2 {[%emt 00:00:30] [%clk 00:01:35]} Kd4
{[%emt 00:00:02] [%clk 00:00:24]} 45. Kc2 {[%clk 00:01:44]} Ke5 {[%emt 00:00:10]
[%clk 00:00:25]} 46. Kc3 {[%emt 00:01:20] [%clk 00:00:34]} Kf4 {[%emt 00:00:07]
[%clk 00:00:28]} 47. Kd4 {[%clk 00:00:44]} Kf3 {[%emt 00:00:11] [%clk 00:00:28]}
48. Ke5 {[%clk 00:00:53]} Kxf2 {[%emt 00:00:05] [%clk 00:00:32]} 49. Kxe4 {[%clk
00:01:02]} Ke2 {[%emt 00:00:30] [%clk 00:00:12]} 50. Kd4 {[%emt 00:00:14] [%clk
00:00:57]} Kf3 {[%emt 00:00:07] [%clk 00:00:15]} 51. Kd3 {[%emt 00:00:02] [%clk
00:01:05]} Kg4 {[%emt 00:00:03] [%clk 00:00:22]} 52. Ke4 {[%clk 00:01:14]} Kxh4
{[%emt 00:00:01] [%clk 00:00:31]} 53. Kf4 {[%clk 00:01:23]} Kh3 {[%emt 00:00:03]
[%clk 00:00:38]} 54. Kf3 {[%clk 00:01:32]} h4 {[%emt 00:00:04] [%clk 00:00:45]}
55. Kf2 {[%emt 00:00:12] [%clk 00:01:30]} Kg4 {[%emt 00:00:15] [%clk 00:00:40]}
56. Kg2 {[%emt 00:00:01] [%clk 00:01:40]} Kf4 {[%emt 00:00:02] [%clk 00:00:47]}
57. Kh3 {[%clk 00:01:49]} Ke3 {[%emt 00:00:07] [%clk 00:00:51]} 58. Kxh4 {[%clk
00:01:58]} Kd2 {[%emt 00:00:01] [%clk 00:01:00]} 59. Kg3 {[%clk 00:02:07]} Kc2
{[%emt 00:00:01] [%clk 00:01:08]} 0-1

[Site "Europe Echecs"]

[Event "Championnat d'Europe Rapide"]
[Date "2024.12.08"]
[White "Tudor, Henry Edward"]
[Black "Boyer, Mahel"]
[WhiteElo "2375"]
[BlackElo "2526"]
[Round "9.31"]
[Result "0-1"]
[TimeControl "900+10"]

1. d4 {[%clk 00:15:17]} g6 {[%emt 00:00:01] [%clk 00:15:19]} 2. c4 {[%emt
00:00:24] [%clk 00:15:04]} Bg7 {[%emt 00:00:01] [%clk 00:15:28]} 3. Nf3 {[%emt
00:00:14] [%clk 00:15:00]} d6 {[%emt 00:00:01] [%clk 00:15:37]} 4. Nc3 {[%emt
00:00:03] [%clk 00:15:07]} Nf6 {[%emt 00:00:02] [%clk 00:15:44]} 5. e4 {[%emt
00:00:02] [%clk 00:15:15]} O-O {[%emt 00:00:02] [%clk 00:15:52]} 6. Be2 {[%emt
00:00:02] [%clk 00:15:24]} e5 {[%emt 00:00:07] [%clk 00:15:55]} 7. O-O {[%emt
00:00:01] [%clk 00:15:32]} Qe8 {[%emt 00:00:03] [%clk 00:16:02]} 8. Re1 {[%emt
00:02:13] [%clk 00:13:29]} exd4 {[%emt 00:00:08] [%clk 00:16:04]} 9. Nxd4 {[%emt
00:00:03] [%clk 00:13:37]} Nxe4 {[%emt 00:00:03] [%clk 00:16:11]} 10. Nd5 {[%emt
00:00:12] [%clk 00:13:34]} Qd8 {[%emt 00:00:11] [%clk 00:16:10]} 11. Bf3 {[%emt
00:04:02] [%clk 00:09:43]} Nxf2 {[%emt 00:02:38] [%clk 00:13:42]} 12. Kxf2
{[%emt 00:02:06] [%clk 00:07:46]} Qh4+ {[%emt 00:00:09] [%clk 00:13:44]} 13. Kf1
{[%emt 00:00:05] [%clk 00:07:51]} Bxd4 {[%emt 00:00:11] [%clk 00:13:40]} 14. g3
{[%emt 00:00:05] [%clk 00:07:58]} Qh3+ {[%emt 00:01:55] [%clk 00:11:55]} 15. Bg2
{[%emt 00:00:11] [%clk 00:07:57]} Nc6 {[%emt 00:00:50] [%clk 00:11:14]} 16. Nf6+
{[%emt 00:02:01] [%clk 00:06:07]} Kg7 {[%emt 00:03:12] [%clk 00:08:12]} 17. Bxh3
{[%emt 00:00:43] [%clk 00:05:33]} Bxh3+ {[%emt 00:00:02] [%clk 00:08:21]} 18.
Ke2 {[%clk 00:05:43]} Bxf6 {[%emt 00:00:11] [%clk 00:08:19]} 19. Kf2 {[%emt
00:00:53] [%clk 00:04:59]} Rfe8 {[%emt 00:02:41] [%clk 00:05:48]} 20. Be3 {[%emt
00:03:29] [%clk 00:01:41]} Ne5 {[%emt 00:00:05] [%clk 00:05:53]} 21. Qd2 {[%emt
00:01:03] [%clk 00:00:48]} c5 {[%emt 00:01:22] [%clk 00:04:41]} 22. Bh6+ {[%emt
00:00:46] [%clk 00:00:12]} Kg8 {[%clk 00:04:50]} 23. Re4 {[%emt 00:00:12] [%clk
00:00:11]} Ng4+ {[%emt 00:01:29] [%clk 00:03:30]} 24. Kf3 {[%emt 00:00:11] [%clk
00:00:11]} Rxe4 {[%emt 00:00:47] [%clk 00:02:53]} 25. Kxe4 {[%clk 00:00:20]}
Re8+ {[%emt 00:00:03] [%clk 00:03:01]} 26. Kd3 {[%emt 00:00:17] [%clk 00:00:13]}
Ne5+ {[%emt 00:00:31] [%clk 00:02:40]} 27. Kc2 {[%emt 00:00:02] [%clk 00:00:21]}
Nxc4 {[%emt 00:00:24] [%clk 00:02:25]} 28. Qf4 {[%emt 00:00:18] [%clk 00:00:13]}
Bf5+ {[%emt 00:00:32] [%clk 00:02:03]} 29. Kb3 {[%clk 00:00:22]} b5 {[%emt
00:00:24] [%clk 00:01:49]} 30. Rd1 {[%emt 00:00:14] [%clk 00:00:19]} Re2 {[%emt
00:00:07] [%clk 00:01:52]} 0-1

[Site "Europe Echecs"]

[Event "Championnat d'Europe Rapide"]
[Date "2024.12.08"]
[White "Ciolacu, Alessia-Mihaela"]
[Black "Baidetskyi, Valentin"]
[WhiteElo "2124"]
[BlackElo "2519"]
[Round "9.32"]
[Result "0-1"]
[TimeControl "900+10"]

1. d4 {[%emt 00:00:02] [%clk 00:15:17]} d6 {[%emt 00:00:05] [%clk 00:15:17]} 2.
Nf3 {[%emt 00:00:03] [%clk 00:15:23]} Nf6 {[%emt 00:00:02] [%clk 00:15:25]} 3.
c4 {[%emt 00:00:04] [%clk 00:15:29]} g6 {[%emt 00:00:02] [%clk 00:15:33]} 4. Nc3
{[%emt 00:00:04] [%clk 00:15:34]} Bg7 {[%emt 00:00:02] [%clk 00:15:41]} 5. e4
{[%emt 00:00:06] [%clk 00:15:38]} O-O {[%emt 00:00:03] [%clk 00:15:48]} 6. h3
{[%emt 00:00:03] [%clk 00:15:46]} Nbd7 {[%emt 00:00:29] [%clk 00:15:28]} 7. Be3
{[%emt 00:00:20] [%clk 00:15:35]} b6 {[%emt 00:00:07] [%clk 00:15:32]} 8. Be2
{[%emt 00:00:59] [%clk 00:14:45]} Bb7 {[%emt 00:00:03] [%clk 00:15:39]} 9. d5
{[%emt 00:00:35] [%clk 00:14:20]} e6 {[%emt 00:00:12] [%clk 00:15:38]} 10. O-O
{[%emt 00:00:16] [%clk 00:14:14]} Re8 {[%emt 00:00:06] [%clk 00:15:42]} 11. Qc2
{[%emt 00:00:10] [%clk 00:14:15]} c6 {[%emt 00:00:13] [%clk 00:15:38]} 12. dxc6
{[%emt 00:00:23] [%clk 00:14:02]} Bxc6 {[%emt 00:00:02] [%clk 00:15:46]} 13.
Rfd1 {[%emt 00:00:40] [%clk 00:13:32]} Qb8 {[%emt 00:00:02] [%clk 00:15:54]} 14.
Bf4 {[%emt 00:00:15] [%clk 00:13:27]} e5 {[%emt 00:00:09] [%clk 00:15:56]} 15.
Be3 {[%emt 00:00:03] [%clk 00:13:34]} Nc5 {[%emt 00:00:14] [%clk 00:15:52]} 16.
Nd2 {[%emt 00:01:07]} a5 {[%clk 00:15:38]} 17. b3 {[%emt 00:01:14] [%clk
00:11:57]} Ne6 {[%emt 00:00:14] [%clk 00:15:33]} 18. Nf3 {[%emt 00:01:18] [%clk
00:10:49]} Nc5 {[%emt 00:00:13] [%clk 00:15:31]} 19. Nd2 {[%emt 00:00:26] [%clk
00:10:33]} Rc8 {[%emt 00:01:29] [%clk 00:14:13]} 20. Qb1 {[%emt 00:01:33] [%clk
00:09:09]} Qb7 {[%emt 00:00:35] [%clk 00:13:48]} 21. Nd5 {[%emt 00:01:23] [%clk
00:07:56]} Nxd5 {[%emt 00:00:02] [%clk 00:13:56]} 22. cxd5 {[%emt 00:00:09]
[%clk 00:07:57]} Bd7 {[%emt 00:00:01] [%clk 00:14:04]} 23. Nc4 {[%emt 00:00:33]
[%clk 00:07:34]} Qb8 {[%emt 00:00:01] [%clk 00:14:13]} 24. Rc1 {[%emt 00:01:39]
[%clk 00:06:05]} f5 {[%emt 00:00:49] [%clk 00:13:34]} 25. f3 {[%emt 00:00:03]
[%clk 00:06:12]} b5 {[%emt 00:02:04] [%clk 00:11:40]} 26. Nxa5 {[%emt 00:00:19]
[%clk 00:06:03]} Rxa5 {[%emt 00:00:02] [%clk 00:11:48]} 27. b4 {[%emt 00:00:02]
[%clk 00:06:10]} Ra3 {[%emt 00:00:09] [%clk 00:11:49]} 28. Bxc5 {[%emt 00:01:30]
[%clk 00:04:50]} dxc5 {[%emt 00:00:02] [%clk 00:11:57]} 29. bxc5 {[%emt
00:00:02] [%clk 00:04:58]} Qa7 {[%emt 00:00:46] [%clk 00:11:21]} 30. Qb4 {[%emt
00:00:29] [%clk 00:04:38]} Bf8 {[%emt 00:00:19] [%clk 00:11:13]} 31. Kh2 {[%emt
00:02:51] [%clk 00:01:57]} Bxc5 {[%emt 00:00:08] [%clk 00:11:15]} 32. Qb2 {[%emt
00:00:15] [%clk 00:01:53]} Bd4 {[%emt 00:00:23] [%clk 00:11:02]} 33. Rxc8+
{[%emt 00:00:10] [%clk 00:01:53]} Bxc8 {[%emt 00:00:02] [%clk 00:11:10]} 34.
Qxb5 {[%emt 00:00:13] [%clk 00:01:49]} Bd7 {[%emt 00:00:04] [%clk 00:11:17]} 0-1

[Site "Europe Echecs"]

[Event "Championnat d'Europe Rapide"]
[Date "2024.12.08"]
[White "Dragnev, Valentin"]
[Black "Pipiras, Filipa Fortuna"]
[WhiteElo "2563"]
[BlackElo "2178"]
[Round "9.33"]
[Result "1-0"]
[TimeControl "900+10"]

1. e4 {[%emt 00:09:04] [%clk 00:15:19]} c6 {[%emt 00:00:05] [%clk 00:15:14]} 2.
d4 {[%emt 00:00:03] [%clk 00:15:26]} d5 {[%emt 00:00:01] [%clk 00:15:23]} 3. e5
{[%emt 00:00:02] [%clk 00:15:35]} Bf5 {[%emt 00:00:03] [%clk 00:15:29]} 4. h4
{[%emt 00:00:07] [%clk 00:15:38]} h5 {[%emt 00:00:02] [%clk 00:15:37]} 5. c4
{[%emt 00:00:02] [%clk 00:15:46]} e6 {[%emt 00:00:04] [%clk 00:15:43]} 6. Nc3
{[%emt 00:00:01] [%clk 00:15:55]} Ne7 {[%emt 00:00:12] [%clk 00:15:41]} 7. Nge2
{[%emt 00:00:33] [%clk 00:15:32]} dxc4 {[%emt 00:01:10] [%clk 00:14:42]} 8. Ng3
{[%emt 00:00:07] [%clk 00:15:35]} Bg6 {[%emt 00:00:01] [%clk 00:14:50]} 9. Bxc4
{[%emt 00:00:13] [%clk 00:15:32]} Nd7 {[%emt 00:00:13] [%clk 00:14:46]} 10. Bg5
{[%emt 00:00:07] [%clk 00:15:36]} Qb6 {[%emt 00:00:23] [%clk 00:14:32]} 11. O-O
{[%emt 00:00:58] [%clk 00:14:50]} Nd5 {[%emt 00:03:02] [%clk 00:11:40]} 12. Rc1
{[%emt 00:01:48] [%clk 00:13:11]} f6 {[%emt 00:01:13] [%clk 00:10:37]} 13. exf6
{[%emt 00:02:08] [%clk 00:11:14]} gxf6 {[%emt 00:00:02] [%clk 00:10:45]} 14. Re1
{[%emt 00:00:49] [%clk 00:10:34]} Kf7 {[%emt 00:01:03] [%clk 00:09:52]} 15. Qe2
{[%emt 00:00:59] [%clk 00:09:46]} Re8 {[%emt 00:00:32] [%clk 00:09:30]} 16. Bxd5
{[%emt 00:03:25] [%clk 00:06:30]} cxd5 {[%emt 00:00:32] [%clk 00:09:08]} 17.
Nxd5 {[%emt 00:00:02] [%clk 00:06:38]} Qd6 {[%emt 00:04:57] [%clk 00:04:21]} 18.
Nc7 {[%emt 00:00:40] [%clk 00:06:08]} Re7 {[%emt 00:00:28] [%clk 00:04:03]} 19.
Nb5 {[%emt 00:00:41] [%clk 00:05:38]} Qd5 {[%emt 00:02:34] [%clk 00:01:38]} 20.
Nc7 {[%emt 00:00:35] [%clk 00:05:13]} Qxa2 {[%emt 00:00:31] [%clk 00:01:17]} 21.
Bf4 {[%emt 00:01:51] [%clk 00:03:31]} Bh6 {[%emt 00:00:31] [%clk 00:00:56]} 22.
Bxh6 {[%emt 00:00:18] [%clk 00:03:24]} Rxh6 {[%emt 00:00:02] [%clk 00:01:03]}
23. d5 {[%emt 00:00:02] [%clk 00:03:32]} e5 {[%emt 00:00:09] [%clk 00:01:04]}
24. d6 {[%emt 00:00:13] [%clk 00:03:30]} Re6 {[%emt 00:00:10] [%clk 00:01:03]}
25. Nxe6 {[%emt 00:00:50] [%clk 00:02:50]} Kxe6 {[%emt 00:00:12] [%clk
00:01:01]} 26. Qd2 {[%emt 00:00:54] [%clk 00:02:06]} Rh8 {[%emt 00:00:21] [%clk
00:00:50]} 27. Rc7 {[%emt 00:00:01] [%clk 00:02:15]} Qb3 {[%emt 00:00:09] [%clk
00:00:51]} 28. Ne2 {[%emt 00:00:02] [%clk 00:02:24]} Qd3 {[%emt 00:00:26] [%clk
00:00:35]} 29. Nf4+ {[%emt 00:00:02] [%clk 00:02:32]} Kxd6 {[%emt 00:00:23]
[%clk 00:00:22]} 30. Rxd7+ {[%emt 00:00:02] [%clk 00:02:40]} Kxd7 {[%emt
00:00:03] [%clk 00:00:29]} 31. Nxd3 {[%emt 00:00:01] [%clk 00:02:49]} 1-0

[Site "Europe Echecs"]

[Event "Championnat d'Europe Rapide"]
[Date "2024.12.08"]
[White "Kalezic, Blazo"]
[Black "Tomasi, Elise"]
[WhiteElo "2382"]
[BlackElo "2073"]
[Round "9.34"]
[Result "1-0"]
[TimeControl "900+10"]

1. e4 {[%emt 00:00:01] [%clk 00:15:17]} e5 {[%emt 00:00:03] [%clk 00:15:18]} 2.
Nf3 {[%emt 00:00:02] [%clk 00:15:24]} Nc6 {[%emt 00:00:06] [%clk 00:15:22]} 3.
Bb5 {[%emt 00:00:02] [%clk 00:15:32]} a6 {[%emt 00:00:03] [%clk 00:15:30]} 4.
Ba4 {[%emt 00:00:01] [%clk 00:15:40]} Nf6 {[%emt 00:00:02] [%clk 00:15:38]} 5.
O-O {[%emt 00:00:02] [%clk 00:15:48]} b5 {[%emt 00:00:03] [%clk 00:15:45]} 6.
Bb3 {[%emt 00:00:01] [%clk 00:15:56]} Bc5 {[%emt 00:00:02] [%clk 00:15:53]} 7.
c3 {[%emt 00:00:08] [%clk 00:15:58]} Qe7 {[%emt 00:00:02] [%clk 00:16:02]} 8. d4
{[%emt 00:00:14] [%clk 00:15:54]} Bb6 {[%emt 00:00:01] [%clk 00:16:10]} 9. a4
{[%emt 00:00:22] [%clk 00:15:42]} Rb8 {[%emt 00:00:05] [%clk 00:16:15]} 10. axb5
{[%emt 00:00:50] [%clk 00:15:02]} axb5 {[%emt 00:00:04] [%clk 00:16:21]} 11. d5
{[%emt 00:00:41] [%clk 00:14:32]} Na5 {[%emt 00:01:22] [%clk 00:15:10]} 12. Bc2
{[%emt 00:00:03] [%clk 00:14:38]} d6 {[%emt 00:00:04] [%clk 00:15:16]} 13. Na3
{[%emt 00:00:25] [%clk 00:14:23]} Bd7 {[%emt 00:00:21] [%clk 00:15:06]} 14. Qe2
{[%emt 00:02:07] [%clk 00:12:25]} h6 {[%emt 00:00:40] [%clk 00:14:36]} 15. b4
{[%emt 00:00:25] [%clk 00:12:10]} Nb7 {[%emt 00:00:01] [%clk 00:14:45]} 16. Bd3
{[%emt 00:00:54] [%clk 00:11:26]} g5 {[%emt 00:00:19] [%clk 00:14:36]} 17. Bxb5
{[%emt 00:00:12] [%clk 00:11:24]} Bxb5 {[%emt 00:00:37] [%clk 00:14:09]} 18.
Nxb5 {[%emt 00:00:19] [%clk 00:11:15]} Rg8 {[%emt 00:00:43] [%clk 00:13:36]} 19.
Be3 {[%emt 00:00:16] [%clk 00:11:09]} Bxe3 {[%emt 00:03:37] [%clk 00:10:09]} 20.
Qxe3 {[%emt 00:00:20] [%clk 00:10:59]} Kf8 {[%emt 00:00:04] [%clk 00:10:15]} 21.
c4 {[%emt 00:00:23] [%clk 00:10:44]} Nh5 {[%emt 00:00:46] [%clk 00:09:41]} 22.
g3 {[%emt 00:00:39] [%clk 00:10:15]} Nf4 {[%emt 00:02:08] [%clk 00:07:44]} 23.
Kh1 {[%emt 00:00:06] [%clk 00:10:18]} Nh3 {[%emt 00:01:34] [%clk 00:06:21]} 24.
Ra7 {[%emt 00:02:12] [%clk 00:08:15]} Kg7 {[%emt 00:00:24] [%clk 00:06:07]} 25.
Ng1 {[%emt 00:01:55] [%clk 00:06:30]} Nxg1 {[%emt 00:01:30] [%clk 00:04:47]} 26.
Kxg1 {[%emt 00:00:17] [%clk 00:06:23]} Qd7 {[%emt 00:00:20] [%clk 00:04:36]} 27.
Rfa1 {[%emt 00:00:48] [%clk 00:05:45]} f5 {[%emt 00:00:33] [%clk 00:04:14]} 28.
exf5 {[%emt 00:00:09] [%clk 00:05:46]} Qxf5 {[%emt 00:00:29] [%clk 00:03:55]}
29. Nxc7 {[%emt 00:00:10] [%clk 00:05:46]} Kh8 {[%emt 00:00:43] [%clk 00:03:23]}
30. Na6 {[%emt 00:00:20] [%clk 00:05:36]} 1-0

[Site "Europe Echecs"]